[Event "CCT Chessable Masters Play-In 2025"]
[Site "Online"]
[Date "2025.02.17"]
[Round "2.82"]
[White "Zarnicki, Pablo"]
[Black "Chirila, Ioan-Cristian"]
[Result "0-1"]
[ECO "B51"]
[WhiteElo "2514"]
[BlackElo "2506"]
[PlyCount "72"]
[EventDate "2025.02.13"]
[EventType "swiss"]
[EventCountry "NET"]
[TimeControl "600"]
[WhiteClock "0:05:17"]
[BlackClock "0:04:07"]

1. e4 {[%emt 0:00:01]} c5 {[%emt 0:00:02]} 2. Nf3 {[%emt 0:00:01]} d6 {[%emt 0:00:06]} 3. Bb5+ {[%emt 0:00:01]} Nc6 {[%emt 0:00:09]} 4. O-O {[%emt 0:00:03]} Nf6 {[%emt 0:00:03]} 5. Re1 {[%emt 0:00:04]} Bd7 {[%emt 0:00:08]} 6. c3 {[%emt 0:00:02]} a5 {[%emt 0:00:03]} 7. d4 {[%emt 0:00:04]} e6 {[%emt 0:00:25]} 8. d5 {[%emt 0:00:04]} Ne5 {[%emt 0:00:10]} 9. Bxd7+ {[%emt 0:00:02]} Qxd7 {[%emt 0:00:12]} 10. Nxe5 {[%emt 0:00:02]} dxe5 {[%emt 0:00:00]} 11. c4 {[%emt 0:00:02]} exd5 {[%emt 0:00:15]} 12. exd5 {[%emt 0:00:01]} Bd6 {[%emt 0:00:02]} 13. Bg5 {[%emt 0:00:04]} Qf5 {[%emt 0:00:06]} 14. Bxf6 {[%emt 0:00:01]} Qxf6 {[%emt 0:00:00]} 15. Nc3 {[%emt 0:00:04]} O-O {[%emt 0:00:05]} 16. Qb3 {[%emt 0:00:16]} Qe7 {[%emt 0:00:12]} 17. Re2 {[%emt 0:00:10]} f5 {[%emt 0:00:08]} 18. Rae1 {[%emt 0:00:01]} e4 {[%emt 0:00:01]} 19. g3 {[%emt 0:00:01]} h5 {[%emt 0:00:17]} 20. f3 {[%emt 0:00:05]} Be5 {[%emt 0:00:24]} 21. Nb5 {[%emt 0:00:22]} h4 {[%emt 0:00:13]} 22. fxe4 {[%emt 0:00:08]} hxg3 {[%emt 0:00:21]} 23. exf5 {[%emt 0:00:13]} gxh2+ {[%emt 0:00:06]} 24. Kh1 {[%emt 0:00:01]} Rxf5 {[%emt 0:00:01]} 25. d6 {[%emt 0:00:10]} Qf6 {[%emt 0:00:23]} 26. Qh3 {[%emt 0:00:32]} Rf8 {[%emt 0:00:01]} 27. Rxh2 {[%emt 0:01:08]} Bxh2 {[%emt 0:00:20]} 28. Kxh2 {[%emt 0:00:13]} Rf2+ {[%emt 0:00:52]} 29. Kh1 {[%emt 0:00:11]} Rf1+ {[%emt 0:00:04]} 30. Rxf1 {[%emt 0:00:04]} Qxf1+ {[%emt 0:00:00]} 31. Qxf1 {[%emt 0:00:01]} Rxf1+ {[%emt 0:00:00]} 32. Kg2 {[%emt 0:00:01]} Rd1 {[%emt 0:00:05]} 33. Kf3 {[%emt 0:00:09]} Kf7 {[%emt 0:00:03]} 34. Ke2 {[%emt 0:00:07]} Rb1 {[%emt 0:00:06]} 35. Nc7 {[%emt 0:00:03]} Rxb2+ {[%emt 0:00:07]} 36. Ke3 {[%emt 0:00:11]} Rxa2 {[%emt 0:00:23]} 0-1

[Event "CCT Chessable Masters Play-In 2025"]
[Site "Online"]
[Date "2025.02.17"]
[Round "2.83"]
[White "Vetokhin, Savva"]
[Black "Pultinevicius, Paulius"]
[Result "0-1"]
[ECO "D36"]
[WhiteElo "2533"]
[BlackElo "2566"]
[PlyCount "88"]
[EventDate "2025.02.13"]
[EventType "swiss"]
[EventCountry "NET"]
[TimeControl "600"]
[WhiteClock "0:03:07"]
[BlackClock "0:04:22"]

1. d4 {[%emt 0:00:01]} Nf6 {[%emt 0:00:03]} 2. c4 {[%emt 0:00:00]} e6 {[%emt 0:00:02]} 3. Nc3 {[%emt 0:00:01]} d5 {[%emt 0:00:01]} 4. cxd5 {[%emt 0:00:01]} exd5 {[%emt 0:00:00]} 5. Bg5 {[%emt 0:00:00]} c6 {[%emt 0:00:02]} 6. e3 {[%emt 0:00:01]} h6 {[%emt 0:00:00]} 7. Bh4 {[%emt 0:00:02]} Be7 {[%emt 0:00:01]} 8. Bd3 {[%emt 0:00:00]} O-O {[%emt 0:00:00]} 9. Nf3 {[%emt 0:00:02]} Re8 {[%emt 0:00:03]} 10. Qc2 {[%emt 0:00:02]} Nbd7 {[%emt 0:00:01]} 11. h3 {[%emt 0:00:02]} Ne4 {[%emt 0:00:02]} 12. Bxe4 {[%emt 0:00:04]} Bxh4 {[%emt 0:00:05]} 13. Bh7+ {[%emt 0:00:25]} Kh8 {[%emt 0:00:01]} 14. Nxh4 {[%emt 0:00:01]} Qxh4 {[%emt 0:00:02]} 15. g3 {[%emt 0:00:06]} Qxd4 {[%emt 0:00:02]} 16. O-O {[%emt 0:00:20]} Qf6 {[%emt 0:00:05]} 17. Bf5 {[%emt 0:00:06]} Ne5 {[%emt 0:00:10]} 18. Bxc8 {[%emt 0:00:01]} Raxc8 {[%emt 0:00:03]} 19. Rad1 {[%emt 0:00:02]} h5 {[%emt 0:00:06]} 20. h4 {[%emt 0:00:05]} g6 {[%emt 0:00:03]} 21. Ne2 {[%emt 0:00:02]} Kg7 {[%emt 0:01:26]} 22. Nf4 {[%emt 0:00:04]} Rh8 {[%emt 0:00:01]} 23. Kg2 {[%emt 0:00:45]} Rhd8 {[%emt 0:00:18]} 24. Rd4 {[%emt 0:00:09]} Nc4 {[%emt 0:00:06]} 25. Qe2 {[%emt 0:00:09]} Nd6 {[%emt 0:00:05]} 26. Rfd1 {[%emt 0:00:15]} Nf5 {[%emt 0:00:02]} 27. R4d3 {[%emt 0:00:00]} Re8 {[%emt 0:00:01]} 28. Qf3 {[%emt 0:00:04]} Qxb2 {[%emt 0:00:08]} 29. Rb3 {[%emt 0:00:18]} Qxa2 {[%emt 0:00:01]} 30. Rxb7 {[%emt 0:00:24]} Rxe3 {[%emt 0:00:09]} 31. Nxh5+ {[%emt 0:00:03]} Kf8 {[%emt 0:00:15]} 32. Qf4 {[%emt 0:00:08]} Qe2 {[%emt 0:00:04]} 33. Rdb1 {[%emt 0:00:44]} Re4 {[%emt 0:00:31]} 34. Qg5 {[%emt 0:01:04]} Qxh5 {[%emt 0:00:35]} 35. Qf6 {[%emt 0:00:02]} Re7 {[%emt 0:00:23]} 36. Rb8 {[%emt 0:00:07]} Rxb8 {[%emt 0:00:20]} 37. Rxb8+ {[%emt 0:00:02]} Re8 {[%emt 0:00:00]} 38. Rb7 {[%emt 0:00:17]} Ne7 {[%emt 0:00:02]} 39. Rxa7 {[%emt 0:00:05]} Qf5 {[%emt 0:00:08]} 40. Qh8+ {[%emt 0:00:14]} Ng8 {[%emt 0:00:02]} 41. Qc3 {[%emt 0:00:09]} Qe4+ {[%emt 0:00:04]} 42. Kh2 {[%emt 0:00:03]} d4 {[%emt 0:00:01]} 43. Qc4 {[%emt 0:00:05]} Nh6 {[%emt 0:00:01]} 44. Qc5+ {[%emt 0:00:18]} Kg8 {[%emt 0:00:03]} 0-1

[Event "CCT Chessable Masters Play-In 2025"]
[Site "Online"]
[Date "2025.02.17"]
[Round "3.1"]
[White "Vachier-Lagrave, Maxime"]
[Black "Pichot, Alan"]
[Result "1/2-1/2"]
[ECO "C78"]
[WhiteElo "2729"]
[BlackElo "2613"]
[PlyCount "177"]
[EventDate "2025.02.13"]
[EventType "swiss"]
[EventCountry "NET"]
[TimeControl "600"]
[WhiteClock "0:01:03"]
[BlackClock "0:00:21"]

1. e4 {[%emt 0:00:01]} e5 {[%emt 0:00:03]} 2. Nf3 {[%emt 0:00:00]} Nc6 {[%emt 0:00:01]} 3. Bb5 {[%emt 0:00:01]} a6 {[%emt 0:00:05]} 4. Ba4 {[%emt 0:00:00]} Nf6 {[%emt 0:00:01]} 5. O-O {[%emt 0:00:02]} b5 {[%emt 0:00:16]} 6. Bb3 {[%emt 0:00:01]} Bc5 {[%emt 0:00:01]} 7. c3 {[%emt 0:00:05]} d6 {[%emt 0:00:02]} 8. d4 {[%emt 0:00:01]} Bb6 {[%emt 0:00:00]} 9. a4 {[%emt 0:00:06]} Rb8 {[%emt 0:00:03]} 10. a5 {[%emt 0:00:09]} Ba7 {[%emt 0:00:02]} 11. h3 {[%emt 0:00:11]} Bb7 {[%emt 0:00:11]} 12. Re1 {[%emt 0:00:11]} O-O {[%emt 0:00:09]} 13. Be3 {[%emt 0:00:11]} exd4 {[%emt 0:00:30]} 14. cxd4 {[%emt 0:00:00]} Nb4 {[%emt 0:00:01]} 15. d5 {[%emt 0:00:01]} Bxe3 {[%emt 0:00:13]} 16. Rxe3 {[%emt 0:00:00]} c5 {[%emt 0:00:29]} 17. Na3 {[%emt 0:00:10]} Re8 {[%emt 0:00:03]} 18. Qe1 {[%emt 0:00:14]} Nd7 {[%emt 0:00:12]} 19. Nc2 {[%emt 0:00:03]} Nxc2 {[%emt 0:00:07]} 20. Bxc2 {[%emt 0:00:00]} Qf6 {[%emt 0:00:01]} 21. Rb1 {[%emt 0:00:22]} Re7 {[%emt 0:00:26]} 22. Qc3 {[%emt 0:00:40]} Rbe8 {[%emt 0:00:08]} 23. Nd2 {[%emt 0:00:23]} Qxc3 {[%emt 0:00:11]} 24. bxc3 {[%emt 0:00:02]} f5 {[%emt 0:01:05]} 25. c4 {[%emt 0:00:15]} b4 {[%emt 0:00:01]} 26. Ba4 {[%emt 0:00:14]} Bc8 {[%emt 0:00:11]} 27. Rbe1 {[%emt 0:00:22]} f4 {[%emt 0:00:08]} 28. R3e2 {[%emt 0:00:18]} Ne5 {[%emt 0:00:42]} 29. Bxe8 {[%emt 0:00:02]} Rxe8 {[%emt 0:00:00]} 30. Rb1 {[%emt 0:00:23]} Bd7 {[%emt 0:00:05]} 31. Ree1 {[%emt 0:00:01]} Ba4 {[%emt 0:00:06]} 32. f3 {[%emt 0:00:46]} Bc2 {[%emt 0:00:12]} 33. Rb2 {[%emt 0:00:13]} Nd3 {[%emt 0:00:06]} 34. Rxc2 {[%emt 0:00:01]} Nxe1 {[%emt 0:00:02]} 35. Rb2 {[%emt 0:00:03]} Nd3 {[%emt 0:00:01]} 36. Rc2 {[%emt 0:00:03]} Ne5 {[%emt 0:00:05]} 37. Nb3 {[%emt 0:00:01]} g5 {[%emt 0:00:03]} 38. Kf2 {[%emt 0:00:07]} Kf7 {[%emt 0:00:02]} 39. Ke2 {[%emt 0:00:03]} Kf6 {[%emt 0:00:01]} 40. Rc1 {[%emt 0:00:01]} h5 {[%emt 0:00:02]} 41. Nd2 {[%emt 0:00:01]} Rg8 {[%emt 0:00:02]} 42. Rh1 {[%emt 0:00:02]} Rb8 {[%emt 0:00:03]} 43. Rb1 {[%emt 0:00:02]} Rg8 {[%emt 0:00:09]} 44. Rh1 {[%emt 0:00:01]} Kg6 {[%emt 0:00:20]} 45. Rf1 {[%emt 0:00:09]} Rf8 {[%emt 0:00:04]} 46. Rh1 {[%emt 0:00:07]} Rb8 {[%emt 0:00:01]} 47. Rb1 {[%emt 0:00:01]} Rb7 {[%emt 0:00:25]} 48. Rb3 {[%emt 0:00:09]} Rh7 {[%emt 0:00:11]} 49. Rb1 {[%emt 0:00:11]} Rh8 {[%emt 0:00:21]} 50. Rh1 {[%emt 0:00:03]} Kf6 {[%emt 0:00:02]} 51. Rf1 {[%emt 0:00:03]} Rb8 {[%emt 0:00:10]} 52. Rb1 {[%emt 0:00:01]} Rb7 {[%emt 0:00:06]} 53. Rb3 {[%emt 0:00:03]} Rg7 {[%emt 0:00:04]} 54. Rb1 {[%emt 0:00:10]} g4 {[%emt 0:00:19]} 55. hxg4 {[%emt 0:00:00]} hxg4 {[%emt 0:00:01]} 56. Rh1 {[%emt 0:00:00]} gxf3+ {[%emt 0:00:01]} 57. gxf3 {[%emt 0:00:00]} Rg2+ {[%emt 0:00:01]} 58. Kd1 {[%emt 0:00:01]} b3 {[%emt 0:00:06]} 59. Rh6+ {[%emt 0:00:15]} Rg6 {[%emt 0:00:10]} 60. Rh8 {[%emt 0:00:12]} Rg1+ {[%emt 0:00:01]} 61. Ke2 {[%emt 0:00:01]} b2 {[%emt 0:00:01]} 62. Rb8 {[%emt 0:00:01]} Nxc4 {[%emt 0:00:03]} 63. Nxc4 {[%emt 0:00:03]} b1=Q {[%emt 0:00:01]} 64. Rxb1 {[%emt 0:00:01]} Rxb1 {[%emt 0:00:01]} 65. Nxd6 {[%emt 0:00:01]} Rb2+ {[%emt 0:00:01]} 66. Kd3 {[%emt 0:00:19]} Rb3+ {[%emt 0:00:01]} 67. Ke2 {[%emt 0:00:01]} Re3+ {[%emt 0:00:04]} 68. Kf2 {[%emt 0:00:01]} Rc3 {[%emt 0:00:01]} 69. Ke2 {[%emt 0:00:09]} c4 {[%emt 0:00:01]} 70. Kd2 {[%emt 0:00:01]} Rd3+ {[%emt 0:00:06]} 71. Kc2 {[%emt 0:00:05]} Rxf3 {[%emt 0:00:01]} 72. Nxc4 {[%emt 0:00:00]} Rf1 {[%emt 0:00:03]} 73. e5+ {[%emt 0:00:08]} Ke7 {[%emt 0:00:01]} 74. Kd3 {[%emt 0:00:07]} f3 {[%emt 0:00:01]} 75. Ke3 {[%emt 0:00:17]} f2 {[%emt 0:00:02]} 76. Nb6 {[%emt 0:00:09]} Ra1 {[%emt 0:00:06]} 77. Kxf2 {[%emt 0:00:02]} Rxa5 {[%emt 0:00:01]} 78. Ke3 {[%emt 0:00:04]} Rb5 {[%emt 0:00:02]} 79. d6+ {[%emt 0:00:01]} Ke6 {[%emt 0:00:03]} 80. Nc4 {[%emt 0:00:00]} a5 {[%emt 0:00:03]} 81. Kd4 {[%emt 0:00:03]} a4 {[%emt 0:00:01]} 82. Kc3 {[%emt 0:00:01]} Rb3+ {[%emt 0:00:04]} 83. Kc2 {[%emt 0:00:01]} Rb5 {[%emt 0:00:01]} 84. Kc3 {[%emt 0:00:01]} Rxe5 {[%emt 0:00:02]} 85. Nxe5 {[%emt 0:00:01]} Kxd6 {[%emt 0:00:01]} 86. Nc4+ {[%emt 0:00:00]} Kc5 {[%emt 0:00:01]} 87. Na3 {[%emt 0:00:00]} Kb6 {[%emt 0:00:01]} 88. Kb4 {[%emt 0:00:01]} Kb7 {[%emt 0:00:01]} 89. Kxa4 {[%emt 0:00:00]} 1/2-1/2

[Event "CCT Chessable Masters Play-In 2025"]
[Site "Online"]
[Date "2025.02.17"]
[Round "3.2"]
[White "Duda, Jan-Krzysztof"]
[Black "Bluebaum, Matthias"]
[Result "1-0"]
[ECO "C02"]
[WhiteElo "2739"]
[BlackElo "2643"]
[PlyCount "139"]
[EventDate "2025.02.13"]
[EventType "swiss"]
[EventCountry "NET"]
[TimeControl "600"]
[WhiteClock "0:01:46"]
[BlackClock "0:00:13"]

1. e4 {[%emt 0:00:01]} e6 {[%emt 0:00:02]} 2. d4 {[%emt 0:00:00]} d5 {[%emt 0:00:00]} 3. e5 {[%emt 0:00:01]} c5 {[%emt 0:00:01]} 4. c3 {[%emt 0:00:00]} Nc6 {[%emt 0:00:00]} 5. Nf3 {[%emt 0:00:01]} Nge7 {[%emt 0:00:00]} 6. Na3 {[%emt 0:00:02]} Bd7 {[%emt 0:00:01]} 7. Nc2 {[%emt 0:00:01]} Qa5 {[%emt 0:00:00]} 8. Bd3 {[%emt 0:00:28]} Nxd4 {[%emt 0:00:02]} 9. Ncxd4 {[%emt 0:00:02]} cxd4 {[%emt 0:00:00]} 10. Nxd4 {[%emt 0:00:01]} Nc6 {[%emt 0:00:01]} 11. Nxc6 {[%emt 0:00:02]} Bxc6 {[%emt 0:00:00]} 12. O-O {[%emt 0:00:04]} d4 {[%emt 0:00:01]} 13. cxd4 {[%emt 0:00:05]} Qd5 {[%emt 0:00:01]} 14. Qg4 {[%emt 0:00:16]} h5 {[%emt 0:00:01]} 15. Qh3 {[%emt 0:00:13]} Qxd4 {[%emt 0:00:13]} 16. Bg5 {[%emt 0:01:00]} Qg4 {[%emt 0:00:25]} 17. Qxg4 {[%emt 0:00:19]} hxg4 {[%emt 0:00:00]} 18. Be2 {[%emt 0:00:06]} Be7 {[%emt 0:01:31]} 19. Bxe7 {[%emt 0:00:07]} Kxe7 {[%emt 0:00:01]} 20. Bxg4 {[%emt 0:00:02]} Rhd8 {[%emt 0:00:00]} 21. Rfd1 {[%emt 0:00:07]} Rxd1+ {[%emt 0:00:01]} 22. Rxd1 {[%emt 0:00:02]} Bd5 {[%emt 0:00:01]} 23. a3 {[%emt 0:00:16]} a5 {[%emt 0:01:52]} 24. h4 {[%emt 0:00:20]} b5 {[%emt 0:00:11]} 25. Be2 {[%emt 0:00:27]} b4 {[%emt 0:00:01]} 26. Rc1 {[%emt 0:00:05]} bxa3 {[%emt 0:00:17]} 27. bxa3 {[%emt 0:00:00]} Ra7 {[%emt 0:00:10]} 28. Bb5 {[%emt 0:00:07]} a4 {[%emt 0:00:26]} 29. Rc8 {[%emt 0:01:00]} f5 {[%emt 0:00:13]} 30. h5 {[%emt 0:00:20]} Rb7 {[%emt 0:00:15]} 31. Bxa4 {[%emt 0:00:10]} Ra7 {[%emt 0:00:01]} 32. Be8 {[%emt 0:00:10]} Rxa3 {[%emt 0:00:08]} 33. Bg6 {[%emt 0:00:02]} Ra8 {[%emt 0:02:20]} 34. Rc7+ {[%emt 0:00:02]} Kf8 {[%emt 0:00:01]} 35. Kh2 {[%emt 0:00:09]} Bb3 {[%emt 0:00:19]} 36. Kg3 {[%emt 0:00:09]} Ba4 {[%emt 0:00:01]} 37. Rf7+ {[%emt 0:00:03]} Kg8 {[%emt 0:00:01]} 38. Re7 {[%emt 0:00:00]} Bb3 {[%emt 0:00:04]} 39. f3 {[%emt 0:00:08]} Kf8 {[%emt 0:00:03]} 40. Rf7+ {[%emt 0:00:02]} Kg8 {[%emt 0:00:01]} 41. Kf4 {[%emt 0:00:05]} Rf8 {[%emt 0:00:15]} 42. Re7 {[%emt 0:00:05]} Rb8 {[%emt 0:00:14]} 43. Kg5 {[%emt 0:00:04]} Bd5 {[%emt 0:00:05]} 44. Rc7 {[%emt 0:00:36]} Ra8 {[%emt 0:00:01]} 45. Rd7 {[%emt 0:00:06]} Rb8 {[%emt 0:00:01]} 46. Bxf5 {[%emt 0:00:07]} exf5 {[%emt 0:00:01]} 47. Rxd5 {[%emt 0:00:01]} Rb2 {[%emt 0:00:00]} 48. g3 {[%emt 0:00:10]} Rb3 {[%emt 0:00:02]} 49. Kg6 {[%emt 0:00:05]} Kf8 {[%emt 0:00:03]} 50. e6 {[%emt 0:00:02]} Ke7 {[%emt 0:00:04]} 51. Rxf5 {[%emt 0:00:01]} Kxe6 {[%emt 0:00:01]} 52. Rf7 {[%emt 0:00:03]} Rb5 {[%emt 0:00:02]} 53. g4 {[%emt 0:00:01]} Ra5 {[%emt 0:00:06]} 54. f4 {[%emt 0:00:01]} Ra4 {[%emt 0:00:00]} 55. g5 {[%emt 0:00:01]} Rb4 {[%emt 0:00:01]} 56. f5+ {[%emt 0:00:01]} Kd5 {[%emt 0:00:00]} 57. Kxg7 {[%emt 0:00:01]} Ke4 {[%emt 0:00:01]} 58. g6 {[%emt 0:00:01]} Rb6 {[%emt 0:00:00]} 59. h6 {[%emt 0:00:02]} Rb8 {[%emt 0:00:00]} 60. h7 {[%emt 0:00:01]} Ra8 {[%emt 0:00:00]} 61. f6 {[%emt 0:00:00]} Re8 {[%emt 0:00:00]} 62. Rf8 {[%emt 0:00:01]} Re7+ {[%emt 0:00:01]} 63. fxe7 {[%emt 0:00:01]} Ke5 {[%emt 0:00:00]} 64. e8=Q+ {[%emt 0:00:01]} Kd6 {[%emt 0:00:00]} 65. Qe3 {[%emt 0:00:01]} Kd5 {[%emt 0:00:01]} 66. Rf2 {[%emt 0:00:01]} Kc4 {[%emt 0:00:00]} 67. h8=Q {[%emt 0:00:01]} Kb5 {[%emt 0:00:01]} 68. Kf6 {[%emt 0:00:01]} Ka4 {[%emt 0:00:00]} 69. Rb2 {[%emt 0:00:01]} Ka5 {[%emt 0:00:01]} 70. Qa8# {[%emt 0:00:02]} 1-0

[Event "CCT Chessable Masters Play-In 2025"]
[Site "Online"]
[Date "2025.02.17"]
[Round "3.3"]
[White "Nihal Sarin"]
[Black "Puranik, Abhimanyu"]
[Result "1/2-1/2"]
[ECO "A48"]
[WhiteElo "2687"]
[BlackElo "2636"]
[PlyCount "132"]
[EventDate "2025.02.13"]
[EventType "swiss"]
[EventCountry "NET"]
[TimeControl "600"]
[WhiteClock "0:00:08"]
[BlackClock "0:00:12"]

1. d4 {[%emt 0:00:04]} Nf6 {[%emt 0:00:02]} 2. Nf3 {[%emt 0:00:05]} g6 {[%emt 0:00:02]} 3. Bg5 {[%emt 0:00:08]} Bg7 {[%emt 0:00:02]} 4. Nbd2 {[%emt 0:00:06]} O-O {[%emt 0:00:01]} 5. e3 {[%emt 0:00:08]} d6 {[%emt 0:00:03]} 6. Bc4 {[%emt 0:00:01]} Nc6 {[%emt 0:00:19]} 7. O-O {[%emt 0:00:07]} h6 {[%emt 0:00:01]} 8. Bh4 {[%emt 0:00:02]} e5 {[%emt 0:00:17]} 9. c3 {[%emt 0:00:01]} Qe8 {[%emt 0:00:05]} 10. b4 {[%emt 0:00:21]} Kh8 {[%emt 0:00:30]} 11. a4 {[%emt 0:00:21]} Nh5 {[%emt 0:00:03]} 12. e4 {[%emt 0:00:59]} exd4 {[%emt 0:00:19]} 13. Nxd4 {[%emt 0:00:10]} Nxd4 {[%emt 0:00:07]} 14. cxd4 {[%emt 0:00:00]} Bxd4 {[%emt 0:00:05]} 15. Rc1 {[%emt 0:00:01]} Bg7 {[%emt 0:00:05]} 16. Re1 {[%emt 0:00:09]} Be6 {[%emt 0:00:05]} 17. Bxe6 {[%emt 0:00:06]} Qxe6 {[%emt 0:00:09]} 18. Rxc7 {[%emt 0:00:01]} Rac8 {[%emt 0:00:45]} 19. Rxb7 {[%emt 0:00:18]} Nf4 {[%emt 0:00:18]} 20. Nf3 {[%emt 0:00:27]} Bc3 {[%emt 0:00:32]} 21. Re3 {[%emt 0:01:03]} Bb2 {[%emt 0:00:06]} 22. Qd2 {[%emt 0:00:01]} Bc1 {[%emt 0:00:42]} 23. Qd4+ {[%emt 0:00:03]} Kg8 {[%emt 0:00:00]} 24. Re1 {[%emt 0:00:23]} Rc4 {[%emt 0:00:43]} 25. Qf6 {[%emt 0:00:01]} Qg4 {[%emt 0:00:17]} 26. Bg3 {[%emt 0:00:03]} Nd3 {[%emt 0:00:03]} 27. h3 {[%emt 0:00:42]} Qc8 {[%emt 0:00:06]} 28. Bxd6 {[%emt 0:00:01]} Bb2 {[%emt 0:00:17]} 29. e5 {[%emt 0:00:19]} Nxe1 {[%emt 0:00:51]} 30. Bxf8 {[%emt 0:00:02]} Nxf3+ {[%emt 0:00:04]} 31. gxf3 {[%emt 0:00:00]} Qxf8 {[%emt 0:00:01]} 32. Rxa7 {[%emt 0:00:02]} Rxb4 {[%emt 0:00:11]} 33. Rd7 {[%emt 0:00:32]} Rd4 {[%emt 0:00:10]} 34. Rb7 {[%emt 0:00:09]} Rd2 {[%emt 0:00:05]} 35. Qf4 {[%emt 0:00:10]} Rd4 {[%emt 0:00:18]} 36. Qf6 {[%emt 0:00:01]} Rb4 {[%emt 0:00:01]} 37. Rd7 {[%emt 0:00:06]} Rb8 {[%emt 0:00:07]} 38. a5 {[%emt 0:00:06]} Re8 {[%emt 0:00:03]} 39. f4 {[%emt 0:00:16]} Qg7 {[%emt 0:00:04]} 40. Qb6 {[%emt 0:00:07]} Bc1 {[%emt 0:00:09]} 41. e6 {[%emt 0:00:11]} Be3 {[%emt 0:00:52]} 42. fxe3 {[%emt 0:01:02]} Qa1+ {[%emt 0:00:10]} 43. Kf2 {[%emt 0:00:03]} Rxe6 {[%emt 0:00:01]} 44. Qd4 {[%emt 0:00:05]} Qxd4 {[%emt 0:00:06]} 45. Rxd4 {[%emt 0:00:00]} Ra6 {[%emt 0:00:00]} 46. Ra4 {[%emt 0:00:01]} Kg7 {[%emt 0:00:01]} 47. h4 {[%emt 0:00:08]} Kf6 {[%emt 0:00:03]} 48. e4 {[%emt 0:00:01]} g5 {[%emt 0:00:02]} 49. hxg5+ {[%emt 0:00:05]} hxg5 {[%emt 0:00:00]} 50. fxg5+ {[%emt 0:00:01]} Kxg5 {[%emt 0:00:01]} 51. Ke3 {[%emt 0:00:00]} f5 {[%emt 0:00:03]} 52. e5 {[%emt 0:00:05]} Re6 {[%emt 0:00:03]} 53. Kd4 {[%emt 0:00:02]} Ra6 {[%emt 0:00:04]} 54. Kc5 {[%emt 0:00:13]} f4 {[%emt 0:00:01]} 55. Kb5 {[%emt 0:00:00]} Re6 {[%emt 0:00:01]} 56. Re4 {[%emt 0:00:00]} Kf5 {[%emt 0:00:01]} 57. Re1 {[%emt 0:00:06]} f3 {[%emt 0:00:00]} 58. Rf1 {[%emt 0:00:03]} Rxe5+ {[%emt 0:00:03]} 59. Kb6 {[%emt 0:00:00]} Kf4 {[%emt 0:00:01]} 60. a6 {[%emt 0:00:01]} Kg3 {[%emt 0:00:02]} 61. a7 {[%emt 0:00:00]} Re8 {[%emt 0:00:01]} 62. Re1 {[%emt 0:00:02]} Ra8 {[%emt 0:00:02]} 63. Kb7 {[%emt 0:00:00]} Rxa7+ {[%emt 0:00:01]} 64. Kxa7 {[%emt 0:00:01]} f2 {[%emt 0:00:00]} 65. Rf1 {[%emt 0:00:00]} Kg2 {[%emt 0:00:01]} 66. Rxf2+ {[%emt 0:00:00]} Kxf2 {[%emt 0:00:00]} 1/2-1/2

[Event "CCT Chessable Masters Play-In 2025"]
[Site "Online"]
[Date "2025.02.17"]
[Round "3.4"]
[White "Anton Guijarro, David"]
[Black "Giri, Anish"]
[Result "1/2-1/2"]
[ECO "B51"]
[WhiteElo "2668"]
[BlackElo "2728"]
[PlyCount "92"]
[EventDate "2025.02.13"]
[EventType "swiss"]
[EventCountry "NET"]
[TimeControl "600"]
[WhiteClock "0:01:32"]
[BlackClock "0:02:14"]

1. e4 {[%emt 0:00:01]} c5 {[%emt 0:00:08]} 2. Nf3 {[%emt 0:00:00]} d6 {[%emt 0:00:00]} 3. Bb5+ {[%emt 0:00:01]} Nd7 {[%emt 0:00:01]} 4. Ba4 {[%emt 0:00:01]} Ngf6 {[%emt 0:00:03]} 5. O-O {[%emt 0:00:02]} e6 {[%emt 0:00:18]} 6. d3 {[%emt 0:00:01]} Be7 {[%emt 0:00:08]} 7. c4 {[%emt 0:00:01]} O-O {[%emt 0:00:01]} 8. Nc3 {[%emt 0:00:00]} b6 {[%emt 0:00:26]} 9. h3 {[%emt 0:00:08]} Bb7 {[%emt 0:00:03]} 10. Qe2 {[%emt 0:00:08]} Ne5 {[%emt 0:00:36]} 11. Nxe5 {[%emt 0:00:26]} dxe5 {[%emt 0:00:01]} 12. f4 {[%emt 0:00:00]} exf4 {[%emt 0:00:00]} 13. Bxf4 {[%emt 0:00:02]} Nd7 {[%emt 0:00:06]} 14. e5 {[%emt 0:00:13]} a6 {[%emt 0:00:13]} 15. Rad1 {[%emt 0:00:09]} b5 {[%emt 0:00:21]} 16. Bc2 {[%emt 0:00:32]} Nb8 {[%emt 0:00:28]} 17. cxb5 {[%emt 0:00:45]} axb5 {[%emt 0:00:02]} 18. d4 {[%emt 0:00:20]} cxd4 {[%emt 0:00:04]} 19. Ne4 {[%emt 0:00:52]} Nc6 {[%emt 0:00:53]} 20. Nf6+ {[%emt 0:00:21]} Bxf6 {[%emt 0:00:03]} 21. exf6 {[%emt 0:00:02]} Qxf6 {[%emt 0:00:05]} 22. Bd6 {[%emt 0:00:20]} Qg5 {[%emt 0:00:05]} 23. Bxf8 {[%emt 0:00:22]} Rxf8 {[%emt 0:00:01]} 24. Be4 {[%emt 0:00:03]} Ba8 {[%emt 0:00:16]} 25. a3 {[%emt 0:00:33]} g6 {[%emt 0:00:36]} 26. Bxc6 {[%emt 0:01:03]} Bxc6 {[%emt 0:00:02]} 27. Rxd4 {[%emt 0:00:01]} h5 {[%emt 0:00:29]} 28. Qd2 {[%emt 0:00:16]} Qxd2 {[%emt 0:00:26]} 29. Rxd2 {[%emt 0:00:00]} Kg7 {[%emt 0:00:05]} 30. Rc1 {[%emt 0:00:01]} Bd5 {[%emt 0:00:03]} 31. Rc5 {[%emt 0:00:07]} Rb8 {[%emt 0:00:06]} 32. Rd4 {[%emt 0:00:02]} Ba8 {[%emt 0:00:17]} 33. Rb4 {[%emt 0:00:11]} Rd8 {[%emt 0:00:01]} 34. Rc2 {[%emt 0:00:04]} Rd5 {[%emt 0:00:08]} 35. b3 {[%emt 0:00:03]} g5 {[%emt 0:00:07]} 36. a4 {[%emt 0:00:02]} bxa4 {[%emt 0:00:00]} 37. bxa4 {[%emt 0:00:01]} Kg6 {[%emt 0:00:06]} 38. Rb8 {[%emt 0:00:36]} Ra5 {[%emt 0:00:13]} 39. Ra2 {[%emt 0:00:28]} Bc6 {[%emt 0:00:09]} 40. Rb4 {[%emt 0:00:02]} h4 {[%emt 0:00:07]} 41. Kf2 {[%emt 0:00:03]} f6 {[%emt 0:00:06]} 42. Ke3 {[%emt 0:00:02]} e5 {[%emt 0:00:10]} 43. Kf2 {[%emt 0:00:01]} Kf5 {[%emt 0:00:05]} 44. Ke3 {[%emt 0:00:01]} Kg6 {[%emt 0:00:01]} 45. Kf2 {[%emt 0:00:01]} Kf5 {[%emt 0:00:06]} 46. Ke3 {[%emt 0:00:00]} Kg6 {[%emt 0:00:01]} 1/2-1/2